lending/lending_fUSD_20251016
["ID","MTS","AMOUNT","RATE_DAILY","PERIOD"]
[391460784,1760611851086,-500.0,0.00014973,2]
[391460786,1760611851097,-500.0,0.00014973,2]
[391460788,1760611851106,-161.27864472,0.00014973,2]
[391460790,1760611851116,-500.0,0.00014973,2]
[391460792,1760611851125,-90.28227418,0.00014973,2]
[391460804,1760611851232,-409.71772582,0.00014973,2]
[391460806,1760611851241,-500.0,0.00014973,2]
[391460808,1760611851255,-500.0,0.00014973,2]
[391460810,1760611851265,-500.0,0.00014973,2]
[391460812,1760611851274,-307.41617309,0.00014973,2]
[391460814,1760611851283,-0.08110109,0.00014973,2]
[391461098,1760611854243,-499.91889891,0.00014973,2]
[391461100,1760611854254,-169.45019718,0.00014973,2]
[391461114,1760611854374,-330.54980282,0.00014973,2]
[391461116,1760611854383,-501.17212125,0.00014973,2]
[391461118,1760611854393,-249.55915573,0.0001499,2]
[391461120,1760611854402,-151.0,0.00014991,2]
[391461122,1760611854411,-249.68946217,0.00014991,2]
[391461124,1760611854421,-151.0,0.00014991,2]
[391461126,1760611854431,-151.0,0.00014991,2]
[391461128,1760611854440,-151.0,0.00014991,2]
[391461130,1760611854449,-151.0,0.00014991,2]
[391461132,1760611854458,-151.0,0.00014991,2]
[391461134,1760611854467,-151.0,0.00014991,2]
[391461136,1760611854477,-151.0,0.00014991,2]
[391461138,1760611854486,-151.0,0.00014991,2]
[391461140,1760611854495,-151.0,0.00014991,2]
[391461142,1760611854505,-151.0,0.00014991,2]
[391461144,1760611854515,-151.0,0.00014991,2]
[391461146,1760611854524,-151.0,0.00014991,2]
[391461148,1760611854533,-200.0,0.00014991,2]
[391461150,1760611854543,-151.0,0.00014991,2]
[391461152,1760611854552,-151.0,0.00014991,2]
[391461154,1760611854562,-151.0,0.00014991,2]
[391461156,1760611854572,-151.0,0.00014991,2]
[391461158,1760611854582,-151.0,0.00014991,2]
[391461160,1760611854592,-151.0,0.00014991,2]
[391461162,1760611854601,-151.0,0.00014991,2]
[391461164,1760611854612,-151.0,0.00014991,2]
[391461166,1760611854622,-151.0,0.00014991,2]
[391461168,1760611854632,-151.0,0.00014991,2]
[391461170,1760611854641,-151.0,0.00014991,2]
[391461172,1760611854653,-282.28797508,0.00014991,2]
[391461174,1760611854663,-241.62716865,0.00014991,2]
[391461176,1760611854673,-1339.44,0.00014999,2]
[391461179,1760611854683,-2534.10688567,0.00014999,2]
[391461181,1760611854695,-1310.03126215,0.00014999,2]
[391461183,1760611854706,-3553.32362911,0.00014999,2]
[391461185,1760611854717,-885.30899995,0.00014999,2]
[391461189,1760611854738,-1717.21922312,0.00014999,2]
[391461191,1760611854749,-9386.17184109,0.00015,2]
[391461467,1760611857472,-4375.2462452,0.00015,2]
[391461469,1760611857483,-71777.69551109,0.00015,2]
[391461482,1760611857589,-55290.0,0.00015,2]
[391461484,1760611857600,-7836.67239979,0.00015,2]
[391461809,1760611860712,-298.9199995,0.00015,2]
[391461812,1760611860727,-520955.71108308,0.00015,2]
[391461814,1760611860738,-3848.34450002,0.00015,2]
[391462168,1760612127616,13179.568841,7.945e-05,2]
[391462172,1760612177938,8976.88113534,7.945e-05,2]
[391462173,1760612177965,4535.65120966,7.945e-05,2]
[391462179,1760612272696,-766.0,0.00016438,30]
[391462236,1760612846233,272.55,7.076e-05,2]
[391462237,1760612846417,272.55,7.448e-05,2]
[391462238,1760612846695,272.55,7.821e-05,2]
[391462239,1760612846895,272.55,8.193e-05,2]
[391462240,1760612847077,272.55,8.566e-05,2]
[391462241,1760612848176,272.55,8.938e-05,2]
[391462242,1760612848339,272.55,9.31e-05,2]
[391462243,1760612848455,272.55,9.683e-05,2]
[391462244,1760612848663,272.55,0.00010055,2]
[391462245,1760612848799,272.55,0.00010428,2]
[391462246,1760612852892,272.55,0.000108,2]
[391462247,1760612853237,272.55,0.00011173,2]
[391462248,1760612853606,272.55,0.00011545,2]
[391462249,1760612853829,272.55,0.00011917,2]
[391462250,1760612854043,272.55,0.0001229,2]
[391462251,1760612854266,272.55,0.00012662,2]
[391462252,1760612860893,-272.55,0.00013035,2]
[391462593,1760613037488,-272.55,0.00013407,2]
[391462594,1760613037497,-291.34,0.00013699,2]
[391462595,1760613037543,-125.55,0.00013699,2]
[391462596,1760613037552,-272.55,0.00013779,2]
[391462597,1760613037562,-272.55,0.00014152,2]
[391462598,1760613037571,-250.0,0.00014156,2]
[391462599,1760613037580,-200.0,0.00014159,2]
[391462600,1760613037589,-150.0,0.00014159,2]
[391462601,1760613037598,-668.50972898,0.0001474,2]
[391462602,1760613037607,-2500.0,0.00014748,2]
[391462603,1760613037616,-1200.0,0.00014799,2]
[391462604,1760613037626,-4779.39031359,0.000148,2]
[391462605,1760613037635,-6374.04,0.000148,2]
[391462606,1760613037644,-610.0,0.00014853,2]
[391462607,1760613037653,-666.0,0.00014877,3]
[391462608,1760613037666,-2650.86,0.00014888,2]
[391462609,1760613037675,-1537.4159,0.00014897,2]
[391462610,1760613037684,-495.90118058,0.000149,2]
[391462611,1760613037695,-6239.82627481,0.000149,2]
[391462612,1760613037706,-5908.97477089,0.000149,2]
[391462613,1760613037715,-168.66012845,0.000149,2]
[391462614,1760613037725,-1586.78578969,0.00014919,2]
[391462615,1760613037735,-1000.0,0.00014926,2]
[391462616,1760613037745,-259.23436214,0.00014973,2]
[391462617,1760613037754,-500.0,0.00014973,2]
[391462618,1760613037763,-163.68627136,0.00014973,2]
[391462619,1760613037772,-1371.065,0.00014973,2]
[391462620,1760613037781,-500.0,0.00014985,2]
[391462621,1760613037790,-151.0,0.00014991,2]
[391462622,1760613037799,-151.0,0.00014991,2]
[391462623,1760613037808,-151.0,0.00014991,2]
[391462624,1760613037817,-151.0,0.00014991,2]
[391462625,1760613037826,-151.0,0.00014991,2]
[391462626,1760613037836,-200.0,0.00014991,2]
[391462627,1760613037846,-200.0,0.00014991,2]
[391462628,1760613037855,-200.0,0.00014991,2]
[391462629,1760613037865,-500.0,0.00014991,2]
[391462630,1760613037875,-500.0,0.00014991,2]
[391462631,1760613037884,-500.0,0.00014991,2]
[391462632,1760613037894,-500.0,0.00014991,2]
[391462633,1760613037903,-182.66312407,0.00014991,2]
[391462634,1760613037912,-158.32181472,0.00014991,2]
[391462635,1760613037923,-155.0,0.00014999,2]
[391462636,1760613037933,-155.0,0.00014999,2]
[391462637,1760613037943,-500.0,0.00014999,2]
[391462638,1760613037952,-381.70627451,0.00014999,2]
[391462639,1760613037962,-500.0,0.00014999,2]
[391462640,1760613037971,-136847.65277869,0.00015,2]
[391462641,1760613037984,-2682.41029886,0.00015,2]
[391462642,1760613037995,-1827.65912022,0.00015,2]
[391462643,1760613038007,-47129.84347584,0.00015,2]
[391462644,1760613038070,-443.8799998,0.00015,2]
[391462645,1760613038081,-3850.41647905,0.00015,2]
[391463240,1760613044020,-33116.6448,0.000149,2]
[391463242,1760613044030,-61738.30411176,0.00015,2]
[391463244,1760613044040,-510.3,0.00015,2]
[391463247,1760613044050,-191786.01584273,0.00015,2]
[391463250,1760613044059,-500.0,0.00015,2]
[391463252,1760613044069,-4137.9039205,0.00015,2]
[391463254,1760613044078,-500.0,0.00015,2]
[391463255,1760613044087,-151.0,0.00015,2]
[391463256,1760613044096,-212.344433,0.00015,2]
[391463257,1760613044106,-151.0,0.00015,2]
[391463258,1760613044115,-151.0,0.00015,2]
[391463259,1760613044124,-151.0,0.00015,2]
[391463260,1760613044134,-151.264103,0.00015,2]
[391463262,1760613044143,-151.0,0.00015,2]
[391463263,1760613044152,-151.0,0.00015,2]
[391463265,1760613044161,-151.552827,0.00015,2]
[391463267,1760613044170,-151.0,0.00015,2]
[391463269,1760613044179,-151.0,0.00015,2]
[391463271,1760613044188,-151.0,0.00015,2]
[391463273,1760613044198,-151.0,0.00015,2]
[391463275,1760613044208,-151.0,0.00015,2]
[391463277,1760613044217,-151.0,0.00015,2]
[391463279,1760613044226,-151.0,0.00015,2]
[391463281,1760613044236,-247.366763,0.00015,2]
[391463283,1760613044247,-151.349589,0.00015,2]
[391463286,1760613044257,-151.0,0.00015,2]
[391463288,1760613044266,-151.0,0.00015,2]
[391463290,1760613044275,-151.0,0.00015,2]
[391463291,1760613044284,-151.0,0.00015,2]
[391463293,1760613044293,-151.0,0.00015,2]
[391463296,1760613044303,-154.20991,0.00015,2]
[391463297,1760613044314,-151.0,0.00015,2]
[391463299,1760613044323,-300.392269,0.00015,2]
[391463302,1760613044333,-151.0,0.00015,2]
[391463303,1760613044342,-151.0,0.00015,2]
[391463305,1760613044351,-189.477756,0.00015,2]
[391463308,1760613044361,-151.0,0.00015,2]
[391463310,1760613044371,-151.0,0.00015,2]
[391463312,1760613044380,-151.0,0.00015,2]
[391463314,1760613044390,-164.78858407,0.00015,2]
[391463316,1760613044402,-151.0,0.00015,2]
[391463318,1760613044412,-172.937544,0.00015,2]
[391463320,1760613044422,-151.0,0.00015,2]
[391463322,1760613044431,-151.0,0.00015,2]
[391463324,1760613044440,-533.570353,0.00015,2]
[391463326,1760613044451,-151.0,0.00015,2]
[391463328,1760613044460,-533.570353,0.00015,2]
[391463329,1760613044470,-151.0,0.00015,2]
[391463331,1760613044480,-533.570353,0.00015,2]
[391463333,1760613044491,-533.570353,0.00015,2]
[391463335,1760613044500,-153.123985,0.00015,2]
[391463337,1760613044509,-151.0,0.00015,2]
[391463339,1760613044519,-151.0,0.00015,2]
[391463341,1760613044528,-153.55867,0.00015,2]
[391463343,1760613044537,-151.0,0.00015,2]
[391463345,1760613044546,-196.838822,0.00015,2]
[391463348,1760613044564,-196.838822,0.00015,2]
[391463350,1760613044573,-196.838822,0.00015,2]
[391463352,1760613044582,-196.838822,0.00015,2]
[391463354,1760613044591,-561.29,0.00015,2]
[391463356,1760613044601,-222.606938,0.00015,2]
[391463358,1760613044610,-615.0156,0.00015,2]
[391463359,1760613044619,-151.0,0.00015,2]
[391463362,1760613044629,-151.0,0.00015,2]
[391463363,1760613044640,-205.93178403,0.00015,2]
[391463366,1760613044651,-2869.6588829,0.00015001,2]
[391463368,1760613044663,-1626.51,0.00015033,2]
[391463370,1760613044672,-456.39,0.00015068,2]
[391463372,1760613044681,-195.0,0.00015068,2]
[391463374,1760613044691,-300.0,0.00015068,2]
[391463376,1760613044702,-166.66,0.00015101,2]
[391463378,1760613044712,-3089.21766013,0.00015202,2]
[391463380,1760613044722,-2410.12125321,0.00015202,2]
[391463382,1760613044732,-162.161218,0.00015202,2]
[391463384,1760613044741,-151.0,0.00015202,2]
[391463386,1760613044750,-151.0,0.00015202,2]
[391463388,1760613044759,-151.0,0.00015202,2]
[391463390,1760613044768,-5169.86725027,0.00015206,2]
[391463392,1760613044778,-500.0,0.00015274,2]
[391463394,1760613044787,-561.29,0.00015274,2]
[391463396,1760613044796,-1000.0,0.0001538,2]
[391463398,1760613044805,-1000.0,0.0001538,2]
[391463400,1760613044814,-1000.0,0.0001538,2]
[391463402,1760613044824,-1000.0,0.0001538,2]
[391463404,1760613044833,-1028.06201743,0.0001538,2]
[391463406,1760613044842,-1000.0,0.0001538,2]
[391463407,1760613044852,-1000.0,0.0001538,2]
[391463410,1760613044861,-1000.0,0.0001538,2]
[391463412,1760613044871,-554.83992473,0.0001538,2]
[391463413,1760613044880,-250.0,0.0001538,2]
[391463415,1760613044889,-250.0,0.0001538,2]
[391463417,1760613044899,-250.0,0.0001538,2]
[391463419,1760613044909,-250.0,0.0001538,2]
[391463421,1760613044918,-250.0,0.0001538,2]
[391463423,1760613044928,-250.0,0.0001538,2]
[391463425,1760613044937,-250.0,0.0001538,2]
[391463427,1760613044947,-270.70515425,0.0001538,2]
[391463429,1760613044957,-250.0,0.0001538,2]
[391463431,1760613044966,-250.0,0.0001538,2]
[391463433,1760613044976,-250.0,0.0001538,2]
[391463435,1760613044986,-250.0,0.0001538,2]
[391463437,1760613044995,-250.0,0.0001538,2]
[391463439,1760613045004,-250.0,0.0001538,2]
[391463441,1760613045013,-250.0,0.0001538,2]
[391463443,1760613045023,-250.0,0.0001538,2]
[391463445,1760613045032,-1000.0,0.0001538,2]
[391463447,1760613045042,-1000.0,0.0001538,2]
[391463449,1760613045051,-1000.0,0.0001538,2]
[391463451,1760613045060,-1000.0,0.0001538,2]
[391463453,1760613045070,-1000.0,0.0001538,2]
[391463456,1760613045080,-1000.0,0.0001538,2]
[391463458,1760613045089,-1000.0,0.0001538,2]
[391463460,1760613045098,-1000.0,0.0001538,2]
[391463462,1760613045107,-1000.0,0.0001538,2]
[391463464,1760613045117,-1000.0,0.0001538,2]
[391463465,1760613045127,-1000.0,0.0001538,2]
[391463467,1760613045136,-151.0,0.0001538,2]
[391463469,1760613045145,-277.35679052,0.0001538,2]
[391463472,1760613045155,-151.0,0.0001538,2]
[391463474,1760613045164,-151.0,0.0001538,2]
[391463476,1760613045173,-151.0,0.0001538,2]
[391463478,1760613045182,-151.0,0.0001538,2]
[391463480,1760613045191,-151.0,0.0001538,2]
[391463482,1760613045201,-225.0,0.0001538,2]
[391463484,1760613045210,-298.7352931,0.0001538,2]
[391463486,1760613045219,-168.0,0.00015459,2]
[391463488,1760613045228,-456.39,0.00015486,2]
[391463490,1760613045237,-6436.0,0.0001552,2]
[391463492,1760613045246,-556.0,0.0001552,2]
[391463494,1760613045255,-6444.0,0.0001552,2]
[391463496,1760613045264,-500.0,0.00015521,2]
[391463498,1760613045273,-151.0,0.00015539,2]
[391463500,1760613045283,-151.0,0.00015539,2]
[391463502,1760613045292,-151.0,0.00015539,2]
[391463504,1760613045301,-151.0,0.00015539,2]
[391463506,1760613045310,-200.0,0.00015539,2]
[391463508,1760613045319,-168.0,0.00015546,2]
[391463510,1760613045329,-561.29,0.00015548,2]
[391463512,1760613045339,-2751.0,0.00015595,2]
[391463514,1760613045351,-151.0,0.00015607,2]
[391463516,1760613045361,-151.0,0.00015607,2]
[391463518,1760613045375,-165.262721,0.00015607,2]
[391463520,1760613045384,-151.0,0.00015607,2]
[391463522,1760613045393,-151.0,0.00015607,2]
[391463524,1760613045402,-151.0,0.00015607,2]
[391463526,1760613045412,-151.00000061,0.00015607,2]
[391463528,1760613045421,-151.0,0.00015607,2]
[391463530,1760613045431,-168.0,0.00015628,2]
[391463532,1760613045440,-1002.26113602,0.0001569,2]
[391463534,1760613045450,-168.0,0.00015767,2]
[391463536,1760613045459,-168.0,0.00015774,2]
[391463538,1760613045469,-151.0,0.00015807,2]
[391463540,1760613045478,-151.0,0.00015807,2]
[391463542,1760613045487,-151.0,0.00015807,2]
[391463544,1760613045497,-151.0,0.00015807,2]
[391463546,1760613045506,-151.0,0.00015807,2]
[391463548,1760613045515,-151.0,0.00015807,2]
[391463550,1760613045524,-1267.0,0.00015807,2]
[391463552,1760613045533,-749.0,0.00015807,2]
[391463554,1760613045542,-3406.0,0.00015807,2]
[391463556,1760613045552,-2097.06,0.00015807,2]
[391463558,1760613045561,-571.0,0.00015807,2]
[391463560,1760613045574,-604.0,0.00015807,2]
[391463562,1760613045584,-1546.0,0.00015807,2]
[391463564,1760613045593,-1355.756,0.00015807,2]
[391463567,1760613045603,-816.0,0.00015807,2]
[391463569,1760613045614,-561.29,0.00015822,2]
[391463571,1760613045624,-456.39,0.00015905,2]
[391463573,1760613045634,-166.67,0.00015918,2]
[391463575,1760613045643,-150.0,0.00015986,2]
[391463577,1760613045652,-1000.0,0.00016,2]
[391463579,1760613045665,-168.0,0.00016008,2]
[391463581,1760613045674,-151.0,0.00016011,2]
[391463583,1760613045684,-151.0,0.00016011,2]
[391463585,1760613045693,-151.0,0.00016011,2]
[391463587,1760613045705,-533.570353,0.00016011,2]
[391463589,1760613045714,-151.0,0.00016011,2]
[391463591,1760613045723,-533.570353,0.00016011,2]
[391463593,1760613045732,-151.0,0.00016011,2]
[391463595,1760613045743,-533.570353,0.00016011,2]
[391463597,1760613045752,-533.570353,0.00016011,2]
[391463598,1760613045762,-151.0,0.00016011,2]
[391463600,1760613045771,-151.0,0.00016011,2]
[391463602,1760613045781,-151.0,0.00016011,2]
[391463604,1760613045790,-151.0,0.00016011,2]
[391463606,1760613045800,-151.0,0.00016011,2]
[391463607,1760613045809,-151.0,0.00016011,2]
[391463608,1760613045818,-151.0,0.00016011,2]
[391463609,1760613045827,-151.0,0.00016011,2]
[391463610,1760613045836,-151.0,0.00016011,2]
[391463611,1760613045847,-151.0,0.00016011,2]
[391463612,1760613045856,-162.232615,0.00016011,2]
[391463613,1760613045866,-151.0,0.00016011,2]
[391463615,1760613045876,-168.0,0.00016041,2]
[391463617,1760613045886,-151.0,0.00016063,2]
[391463619,1760613045895,-196.838822,0.00016063,2]
[391463621,1760613045904,-196.838822,0.00016063,2]
[391463623,1760613045913,-196.838822,0.00016063,2]
[391463625,1760613045922,-196.838822,0.00016063,2]
[391463627,1760613045932,-1000.0,0.00016063,2]
[391463629,1760613045941,-200.0,0.00016087,2]
[391463631,1760613045951,-561.29,0.00016096,2]
[391463632,1760613045960,-1000.0,0.000161,2]
[391463634,1760613045970,-150.0,0.00016109,2]
[391463637,1760613045979,-1856.23472856,0.00016109,2]
[391463639,1760613045988,-6178.43532026,0.00016189,2]
[391463641,1760613045998,-151.0,0.00016189,2]
[391463643,1760613046007,-151.0,0.00016189,2]
[391463645,1760613046016,-151.0,0.00016189,2]
[391463647,1760613046025,-151.0,0.000162,2]
[391463649,1760613046035,-293.769257,0.000162,2]
[391463651,1760613046045,-161.419559,0.000162,2]
[391463653,1760613046054,-151.0,0.000162,2]
[391463655,1760613046063,-152.019819,0.000162,2]
[391463658,1760613046072,-151.0,0.000162,2]
[391463659,1760613046082,-151.0,0.000162,2]
[391463661,1760613046091,-151.720123,0.000162,2]
[391463663,1760613046100,-151.0,0.000162,2]
[391463665,1760613046110,-151.0,0.000162,2]
[391463668,1760613046119,-151.0,0.000162,2]
[391463670,1760613046128,-151.0,0.000162,2]
[391463672,1760613046137,-151.0,0.000162,2]
[391463674,1760613046146,-1012.0,0.000162,2]
[391463676,1760613046156,-227.72928,0.000162,2]
[391463679,1760613046168,-151.0,0.000162,2]
[391463680,1760613046177,-151.0,0.000162,2]
[391463683,1760613046187,-168.0,0.00016208,2]
[391463684,1760613046196,-168.0,0.00016218,2]
[391463687,1760613046205,-150.0,0.00016248,2]
[391463689,1760613046215,-150.0,0.00016248,2]
[391463691,1760613046225,-150.0,0.00016248,2]
[391463693,1760613046234,-150.0,0.00016248,2]
[391463695,1760613046243,-150.0,0.00016248,2]
[391463697,1760613046252,-168.0,0.00016253,2]
[391463699,1760613046261,-1680.0,0.00016279,2]
[391463701,1760613046271,-200.0,0.00016307,2]
[391463703,1760613046280,-168.0,0.00016331,2]
[391463705,1760613046289,-1600.0,0.00016338,2]
[391463707,1760613046298,-407.0,0.00016342,2]
[391463709,1760613046307,-6239.82627478,0.00016344,2]
[391463711,1760613046316,-561.34,0.0001637,2]
[391463713,1760613046326,-300.0,0.00016376,2]
[391463715,1760613046335,-407.0,0.00016417,2]
[391463717,1760613046345,-500.0,0.00016438,2]
[391463719,1760613046354,-500.0,0.00016438,2]
[391463721,1760613046364,-500.0,0.00016438,2]
[391463723,1760613046373,-500.0,0.00016438,2]
[391463725,1760613046382,-500.0,0.00016438,2]
[391463727,1760613046392,-500.0,0.00016438,2]
[391463729,1760613046402,-500.0,0.00016438,2]
[391463731,1760613046411,-500.0,0.00016438,2]
[391463733,1760613046421,-500.0,0.00016438,2]
[391463735,1760613046430,-500.0,0.00016438,2]
[391463737,1760613046439,-500.0,0.00016438,2]
[391463739,1760613046449,-500.0,0.00016438,2]
[391463741,1760613046459,-500.0,0.00016438,2]
[391463743,1760613046468,-150.0,0.00016438,2]
[391463745,1760613046478,-150.0,0.00016438,2]
[391463747,1760613046487,-150.0,0.00016438,2]
[391463749,1760613046496,-150.0,0.00016438,2]
[391463751,1760613046505,-150.0,0.00016438,2]
[391463753,1760613046514,-150.0,0.00016438,2]
[391463755,1760613046524,-150.0,0.00016438,2]
[391463757,1760613046533,-150.0,0.00016438,2]
[391463759,1760613046543,-150.0,0.00016438,2]
[391463761,1760613046553,-200.8066014,0.00016438,2]
[391463763,1760613046563,-251.83634922,0.00016438,2]
[391463765,1760613046572,-500.0,0.00016438,2]
[391463767,1760613046581,-500.0,0.00016438,2]
[391463769,1760613046591,-500.0,0.00016438,2]
[391463771,1760613046600,-150.0,0.00016438,2]
[391463772,1760613046609,-500.0,0.00016438,2]
[391463775,1760613046619,-231.690892,0.00016438,2]
[391463776,1760613046628,-825.49,0.00016438,2]
[391463778,1760613046638,-825.49,0.00016438,2]
[391463780,1760613046647,-825.49,0.00016438,2]
[391463783,1760613046660,-825.49,0.00016438,2]
[391463785,1760613046675,-825.49,0.00016438,2]
[391463786,1760613046684,-825.49,0.00016438,2]
[391463788,1760613046693,-822.29,0.00016438,2]
[391463791,1760613046705,-822.29,0.00016438,2]
[391463793,1760613046714,-822.29,0.00016438,2]
[391463794,1760613046723,-822.29,0.00016438,2]
[391463797,1760613046733,-822.29,0.00016438,2]
[391463798,1760613046744,-822.29,0.00016438,2]
[391463801,1760613046754,-151.0,0.00016438,2]
[391463803,1760613046764,-151.0,0.00016438,2]
[391463804,1760613046774,-151.0,0.00016438,2]
[391463807,1760613046784,-151.0,0.00016438,2]
[391463808,1760613046793,-151.0,0.00016438,2]
[391463811,1760613046803,-151.0,0.00016438,2]
[391463812,1760613046812,-500.0,0.00016438,2]
[391463814,1760613046821,-500.0,0.00016438,2]
[391463817,1760613046831,-500.0,0.00016438,2]
[391463819,1760613046840,-500.0,0.00016438,2]
[391463821,1760613046850,-500.0,0.00016438,2]
[391463822,1760613046860,-500.0,0.00016438,2]
[391463824,1760613046870,-151.0,0.00016438,2]
[391463826,1760613046879,-151.0,0.00016438,2]
[391463828,1760613046889,-151.0,0.00016438,2]
[391463830,1760613046899,-151.0,0.00016438,2]
[391463832,1760613046909,-151.0,0.00016438,2]
[391463835,1760613046919,-151.0,0.00016438,2]
[391463836,1760613046928,-709.59,0.00016438,2]
[391463839,1760613046938,-709.59,0.00016438,2]
[391463840,1760613046948,-709.59,0.00016438,2]
[391463843,1760613046958,-709.59,0.00016438,2]
[391463844,1760613046968,-709.59,0.00016438,2]
[391463846,1760613046978,-709.59,0.00016438,2]
[391463848,1760613046988,-500.0,0.00016438,2]
[391463851,1760613046997,-500.0,0.00016438,2]
[391463853,1760613047007,-500.0,0.00016438,2]
[391463855,1760613047017,-500.0,0.00016438,2]
[391463857,1760613047026,-1054.34,0.00016438,2]
[391463859,1760613047036,-500.0,0.00016438,2]
[391463861,1760613047046,-1054.34,0.00016438,2]
[391463863,1760613047056,-500.0,0.00016438,2]
[391463865,1760613047065,-1054.34,0.00016438,2]
[391463867,1760613047075,-500.0,0.00016438,2]
[391463869,1760613047084,-177.06942,0.00016438,2]
[391463871,1760613047094,-1054.34,0.00016438,2]
[391463873,1760613047103,-500.0,0.00016438,2]
[391463875,1760613047112,-500.0,0.00016438,2]
[391463877,1760613047122,-500.0,0.00016438,2]
[391463879,1760613047131,-500.0,0.00016438,2]
[391463881,1760613047140,-500.0,0.00016438,2]
[391463909,1760613047388,-500.0,0.00016438,2]
[391463910,1760613047455,-500.0,0.00016438,2]
[391463912,1760613047466,-500.0,0.00016438,2]
[391463914,1760613047475,-500.0,0.00016438,2]
[391463916,1760613047485,-500.0,0.00016438,2]
[391463918,1760613047495,-520.63499639,0.00016438,2]
[391463920,1760613047504,-151.0,0.00016438,2]
[391463922,1760613047513,-151.0,0.00016438,2]
[391463924,1760613047524,-151.0,0.00016438,2]
[391463926,1760613047534,-151.0,0.00016438,2]
[391463928,1760613047544,-500.0,0.00016438,2]
[391463931,1760613047553,-516.79520798,0.00016438,2]
[391463932,1760613047563,-150.0,0.00016438,2]
[391463935,1760613047573,-150.0,0.00016438,2]
[391463936,1760613047583,-150.0,0.00016438,2]
[391463939,1760613047593,-826.35,0.00016438,2]
[391463940,1760613047603,-826.35,0.00016438,2]
[391463943,1760613047613,-826.35,0.00016438,2]
[391463945,1760613047623,-826.35,0.00016438,2]
[391463946,1760613047632,-151.0,0.00016438,2]
[391463949,1760613047642,-151.0,0.00016438,2]
[391463951,1760613047651,-151.0,0.00016438,2]
[391463952,1760613047664,-1512.37,0.00016438,2]
[391463955,1760613047673,-1512.37,0.00016438,2]
[391463956,1760613047683,-1512.37,0.00016438,2]
[391463959,1760613047693,-1512.37,0.00016438,2]
[391463960,1760613047703,-151.0,0.00016438,2]
[391463963,1760613047712,-151.0,0.00016438,2]
[391463965,1760613047722,-151.0,0.00016438,2]
[391463966,1760613047731,-151.0,0.00016438,2]
[391463969,1760613047743,-151.0,0.00016438,2]
[391463971,1760613047753,-151.0,0.00016438,2]
[391463973,1760613047763,-500.0,0.00016438,2]
[391463974,1760613047773,-500.0,0.00016438,2]
[391463977,1760613047783,-500.0,0.00016438,2]
[391463978,1760613047792,-500.0,0.00016438,2]
[391463981,1760613047802,-663.33,0.00016438,2]
[391463983,1760613047812,-663.33,0.00016438,2]
[391463985,1760613047821,-663.33,0.00016438,2]
[391463986,1760613047831,-663.33,0.00016438,2]
[391463988,1760613047841,-500.0,0.00016438,2]
[391463990,1760613047850,-500.0,0.00016438,2]